bitfinex-derivatives/quotes_BTCF0:USTF0_20250329
["timestamp","ask_amount","ask_price","bid_price","bid_amount"]
[1743273465066,0.29557001,82560.0,82559.0,0.04014]
[1743273465263,0.33317001,82560.0,82559.0,0.1643115]
[1743273465962,0.33317001,82560.0,82559.0,0.2010115]
[1743273466754,0.33317001,82560.0,82559.0,0.07984]
[1743273466971,0.33317001,82560.0,82559.0,0.04314]
[1743273467161,0.33317001,82560.0,82559.0,0.00664]
[1743273469162,0.33317001,82560.0,82559.0,0.006]
[1743273470968,0.33317001,82560.0,82559.0,0.00664]
[1743273471158,0.33317001,82560.0,82559.0,0.006]
[1743273471665,0.33317001,82560.0,82559.0,0.00664]
[1743273471965,0.33317001,82560.0,82559.0,0.006]
[1743273472169,0.44141697,82560.0,82559.0,0.006]
[1743273474075,0.80221697,82560.0,82559.0,0.006]
[1743273474572,0.40381697,82560.0,82559.0,0.3668]
[1743273474772,0.40381697,82560.0,82559.0,0.36748]
[1743273474976,0.40381697,82560.0,82559.0,0.44178]
[1743273475868,0.29557001,82560.0,82559.0,0.44178]
[1743273476575,0.29557001,82560.0,82559.0,0.08098]
[1743273476773,0.29557001,82560.0,82559.0,0.0447]
[1743273477271,0.29557001,82560.0,82559.0,0.04534]
[1743273477470,0.29557001,82560.0,82559.0,0.0447]
[1743273477660,0.29557001,82560.0,82559.0,0.04546]
[1743273479075,0.29557001,82560.0,82559.0,0.08216]
[1743273480873,0.10120001,82560.0,82559.0,0.3378515]
[1743273481380,0.10120001,82560.0,82559.0,0.35024625]
[1743273482878,0.10120001,82560.0,82559.0,0.36554497]
[1743273483075,0.10120001,82560.0,82559.0,0.72634497]
[1743273483271,0.1,82560.0,82559.0,0.72634497]
[1743273484676,0.1,82560.0,82559.0,0.87634497]
[1743273485676,0.14513965,82569.0,82563.0,0.1211656]
[1743273485978,0.14513965,82569.0,82568.0,0.4819583]
[1743273486177,0.14513965,82569.0,82568.0,0.49789702]
[1743273486384,0.14513965,82569.0,82568.0,0.52789702]
[1743273486582,0.0351,82584.0,82575.0,0.121148]
[1743273486880,0.18257248,82576.0,82575.0,0.65821075]
[1743273487070,0.00112001,82576.0,82575.0,0.65821075]
[1743273487275,0.0387,82586.0,82585.0,0.1211333]
[1743273487482,0.03982001,82586.0,82585.0,0.1217733]
[1743273487780,0.03982001,82586.0,82585.0,0.13786853]
[1743273488086,0.03982001,82586.0,82585.0,0.15332879]
[1743273488480,0.03982001,82586.0,82585.0,0.22882879]
[1743273489081,0.00112001,82586.0,82585.0,0.24083852]
[1743273489384,0.14508637,82589.0,82588.0,0.1211289]
[1743273489582,0.14628638,82589.0,82588.0,0.13794413]
[1743273489885,0.14628638,82589.0,82588.0,0.15340439]
[1743273490081,0.14628638,82589.0,82588.0,0.22670439]
[1743273490379,0.00120001,82589.0,82588.0,0.22670439]
[1743273490573,0.0387,82592.0,82588.0,0.22670439]
[1743273490574,0.0387,82592.0,82591.0,0.1211245]
[1743273490775,0.03982001,82592.0,82591.0,0.4825645]
[1743273491086,0.0387,82592.0,82591.0,0.4825645]
[1743273491285,0.0387,82592.0,82591.0,0.49802476]
[1743273491784,0.0387,82592.0,82591.0,0.57252476]
[1743273491980,0.0387,82592.0,82591.0,0.57352476]
[1743273493487,0.0387,82592.0,82591.0,0.57552476]
[1743273494569,0.03990001,82592.0,82591.0,0.57552476]
[1743273496091,0.0387,82592.0,82591.0,0.57552476]
[1743273496280,0.1598231,82592.0,82591.0,0.37990026]
[1743273496477,0.16094311,82592.0,82591.0,0.01910026]
[1743273497087,0.19724311,82592.0,82591.0,0.01846026]
[1743273497286,0.19724311,82592.0,82591.0,0.00364]
[1743273497490,0.20968491,82592.0,82591.0,0.00164]
[1743273497687,0.1211363,82583.0,82582.0,0.28654201]
[1743273497879,0.08856181,82592.0,82584.0,0.1816986]
[1743273497880,0.0605654,82587.0,82584.0,0.1816986]
[1743273498082,0.0605654,82587.0,82586.0,0.1211319]
[1743273498277,0.06168541,82587.0,82586.0,0.1211319]
[1743273498482,0.06168541,82587.0,82586.0,0.1217719]
[1743273498676,0.0605654,82587.0,82586.0,0.1211319]
[1743273500482,0.1211333,82585.0,82584.0,0.0605667]
[1743273502091,0.1211333,82585.0,82584.0,0.0615667]
[1743273502583,0.1211333,82585.0,82584.0,0.0625667]
[1743273503487,0.12225331,82585.0,82584.0,0.0632067]
[1743273503698,0.1211333,82585.0,82584.0,0.0632067]
[1743273503873,0.12237331,82585.0,82584.0,0.0632067]
[1743273504283,0.12237331,82585.0,82584.0,0.00264]
[1743273507189,0.12237331,82585.0,82584.0,0.1237748]
[1743273508690,0.00124001,82585.0,82584.0,0.1237748]
[1743273508891,0.0605642,82589.0,82588.0,0.1211289]
[1743273509091,0.18281311,82589.0,82588.0,0.1217689]
[1743273509892,0.18281311,82589.0,82588.0,0.1936689]
[1743273510097,0.18281311,82589.0,82588.0,0.1590689]
[1743273510299,0.18281311,82589.0,82588.0,0.1217689]
[1743273511301,0.18281311,82589.0,82588.0,0.1227689]
[1743273511784,0.18281311,82589.0,82588.0,0.00164]
[1743273512284,0.18281311,82589.0,82588.0,0.00264]
[1743273512893,0.18281311,82589.0,82588.0,0.00164]
[1743273513092,0.18281311,82589.0,82588.0,0.00064]
[1743273513288,0.00112001,82589.0,82588.0,0.4825689]
[1743273513493,0.1569223,82593.0,82592.0,0.1211231]
[1743273513806,0.1580823,82593.0,82592.0,0.1218031]
[1743273514001,0.1580823,82593.0,82592.0,0.1933031]
[1743273514498,0.03696,82593.0,82592.0,0.1933031]
[1743273514698,0.12130225,82594.0,82593.0,0.1211216]
[1743273514893,0.12242226,82594.0,82593.0,0.1918616]
[1743273515397,0.00130126,82594.0,82593.0,0.1918616]
[1743273515589,0.03498125,82594.0,82593.0,0.20409067]
[1743273516192,0.03610126,82594.0,82593.0,0.20409067]
[1743273516399,0.0004,82596.0,82595.0,0.1211187]
[1743273516605,0.3608,82622.0,82604.0,0.1816564]
[1743273516606,0.1816595,82605.0,82604.0,0.1816564]
[1743273516791,0.18285951,82605.0,82604.0,0.061192]
[1743273517294,0.21765951,82605.0,82604.0,0.061192]
[1743273517495,0.09655211,82605.0,82604.0,0.061192]
[1743273517694,0.19230401,82605.0,82604.0,0.061192]
[1743273518389,0.19230401,82605.0,82604.0,0.07316733]
[1743273518591,0.07120001,82605.0,82604.0,0.07316733]
[1743273518792,0.07120001,82605.0,82604.0,0.0882449]
[1743273518999,0.07,82605.0,82604.0,0.0882449]
[1743273519197,0.19222401,82605.0,82604.0,0.0882449]
[1743273519501,0.19422401,82605.0,82604.0,0.0882449]
[1743273520203,0.19622401,82605.0,82604.0,0.0882449]
[1743273521000,0.19622401,82605.0,82604.0,0.07626957]
[1743273521195,0.19622401,82605.0,82604.0,0.01571757]
[1743273521196,0.20812887,82605.0,82604.0,0.01571757]
[1743273521596,0.20812887,82605.0,82604.0,0.01507757]
[1743273522006,0.1211084,82602.0,82601.0,0.1211098]
[1743273522194,0.12222841,82602.0,82601.0,0.1217498]
[1743273523097,0.12322841,82602.0,82601.0,0.1217498]
[1743273523508,0.12422841,82602.0,82601.0,0.1909498]
[1743273524306,0.00312001,82602.0,82601.0,0.1909498]
[1743273524501,0.002,82602.0,82601.0,0.1909498]
[1743273524806,0.1231084,82602.0,82601.0,0.1909498]
[1743273525004,0.12422841,82602.0,82601.0,0.1909498]
[1743273528102,0.12422841,82602.0,82601.0,0.00064]
[1743273528406,0.1211157,82597.0,82596.0,0.00018164]
[1743273528606,0.12223571,82597.0,82596.0,0.00082164]
[1743273529304,0.19253571,82597.0,82596.0,0.00082164]
[1743273530406,0.19353571,82597.0,82596.0,0.00082164]
[1743273531100,0.19453571,82597.0,82596.0,0.00018164]
[1743273531908,0.19553571,82597.0,82596.0,0.00018164]
[1743273532295,0.19553571,82597.0,82596.0,0.00090164]
[1743273532509,0.19653571,82597.0,82596.0,0.00090164]
[1743273532706,0.19753571,82597.0,82596.0,0.00090164]
[1743273533008,0.19553571,82597.0,82596.0,0.00018164]
[1743273533211,0.19753571,82597.0,82596.0,0.00018164]
[1743273533602,0.19653571,82597.0,82596.0,0.00018164]
[1743273535406,0.19753571,82597.0,82596.0,0.00018164]
[1743273543720,0.19753571,82597.0,82580.0,0.0371]
[1743273543721,0.1211377,82582.0,82580.0,0.0371]
[1743273543915,0.1222977,82582.0,82581.0,0.28726201]
[1743273544311,0.1950977,82582.0,82581.0,0.28726201]
[1743273544509,0.1950977,82582.0,82581.0,0.00072]
[1743273544510,0.20718179,82582.0,82581.0,0.00072]
[1743273545212,0.20718179,82582.0,82581.0,0.00272]
[1743273546320,0.21018179,82582.0,82581.0,0.00072]
[1743273546719,0.34442179,82582.0,82581.0,0.00172]
[1743273547212,0.34442179,82582.0,82581.0,0.00072]
[1743273547413,0.34642179,82582.0,82581.0,0.00072]
[1743273547720,0.70722179,82582.0,82581.0,0.00072]
[1743273548914,0.1211451,82577.0,82576.0,0.0743]
[1743273549116,0.1223051,82577.0,82576.0,0.0743]
[1743273549820,0.1957051,82577.0,82576.0,0.0743]
[1743273550419,0.1977051,82577.0,82576.0,0.0743]
[1743273550819,0.1977051,82577.0,82576.0,0.1961265]
[1743273551019,0.1243051,82577.0,82576.0,0.1961265]
[1743273551221,0.1243051,82577.0,82576.0,0.07498]
[1743273552018,0.1263051,82577.0,82576.0,0.07498]
[1743273552217,0.1635051,82577.0,82576.0,0.07498]
[1743273553217,0.1978051,82577.0,82576.0,0.00068]
[1743273554717,0.1635051,82577.0,82576.0,0.00068]
[1743273556520,0.1211495,82574.0,82573.0,0.00018164]
[1743273556833,0.12226951,82574.0,82573.0,0.07188164]
[1743273557220,0.12226951,82574.0,82573.0,0.07252164]
[1743273557420,0.15696951,82574.0,82573.0,0.07252164]
[1743273558124,0.15796951,82574.0,82573.0,0.07252164]
[1743273558722,0.15896951,82574.0,82573.0,0.07252164]
[1743273559027,0.16416951,82574.0,82573.0,0.07252164]
[1743273559617,0.16416951,82574.0,82573.0,0.07188164]
[1743273559814,0.20086951,82574.0,82573.0,0.07308164]
[1743273562331,0.16416951,82574.0,82573.0,0.07308164]
[1743273562830,0.12426951,82574.0,82573.0,0.19423254]
[1743273563934,0.12426951,82574.0,82573.0,0.07308164]
[1743273564632,0.16436951,82574.0,82573.0,0.07308164]
[1743273568433,0.16436951,82574.0,82573.0,0.19423254]
[1743273568624,0.16436951,82574.0,82573.0,0.07308164]
[1743273572228,0.20166951,82574.0,82573.0,0.07308164]
[1743273572620,0.00312001,82574.0,82573.0,0.55503254]
[1743273572831,0.00018164,82585.0,82584.0,0.1211348]
[1743273573031,0.00130165,82585.0,82584.0,0.4825748]
[1743273573228,0.12243495,82585.0,82584.0,0.4825748]
[1743273574033,0.12243495,82585.0,82584.0,0.5584748]
[1743273574034,0.12643495,82585.0,82584.0,0.5584748]
[1743273575130,0.12943495,82585.0,82584.0,0.5584748]
[1743273577035,0.00830165,82585.0,82584.0,0.57034155]
[1743273577444,0.00718164,82585.0,82584.0,0.57034155]
[1743273577627,0.00830165,82585.0,82584.0,0.57034155]
[1743273578639,0.00830165,82585.0,82584.0,0.78593964]
[1743273578940,0.00718164,82585.0,82584.0,0.78593964]
[1743273583636,0.12831494,82585.0,82584.0,0.85688356]
[1743273583935,0.12943495,82585.0,82584.0,0.85688356]
[1743273584137,0.00718164,82585.0,82584.0,0.85688356]
[1743273584433,0.0605648,82588.0,82585.0,0.1816963]
[1743273584640,0.0605648,82588.0,82587.0,0.1211304]
[1743273584833,0.0605648,82588.0,82587.0,0.1217704]
[1743273585232,0.0605648,82588.0,82587.0,0.1613704]
[1743273586040,0.0635648,82588.0,82587.0,0.1613704]
[1743273586340,0.0645648,82588.0,82587.0,0.1613704]
[1743273586936,0.06568481,82588.0,82587.0,0.1613704]
[1743273588246,0.14338481,82588.0,82587.0,0.1613704]
[1743273588548,0.15563735,82588.0,82587.0,0.1613704]
[1743273589241,0.15563735,82588.0,82587.0,0.04024]
[1743273589433,0.15563735,82588.0,82587.0,0.00064]
[1743273589942,0.15563735,82588.0,82576.0,0.3617033]
[1743273589943,0.1211377,82582.0,82576.0,0.3617033]
[1743273590152,0.1211451,82577.0,82576.0,0.3617033]
[1743273590440,0.1226251,82577.0,82576.0,0.00068]
[1743273591035,0.32082492,82577.0,82576.0,0.00068]
[1743273593640,0.32182492,82577.0,82576.0,0.00068]
[1743273594537,0.68262492,82577.0,82576.0,0.00068]
[1743273594739,0.1211495,82574.0,82573.0,0.00018164]
[1743273594932,0.2566695,82574.0,82573.0,0.00018164]
[1743273595340,0.3313695,82574.0,82573.0,0.00018164]
[1743273595743,0.3313695,82574.0,82573.0,0.00082164]
[1743273595941,0.3313695,82574.0,82573.0,0.00018164]
[1743273596551,0.3323695,82574.0,82573.0,0.00018164]
[1743273599040,0.3323695,82574.0,82573.0,0.00082164]
[1743273600254,0.07718,82574.0,82573.0,0.00018164]
[1743273600554,0.00248,82574.0,82573.0,0.15837254]
[1743273600748,0.1221495,82574.0,82573.0,0.19477254]
[1743273600949,0.1236695,82574.0,82573.0,0.19477254]
[1743273602055,0.1236695,82574.0,82573.0,0.07362164]
[1743273602755,0.1600695,82574.0,82573.0,0.07362164]
[1743273603051,0.1975695,82574.0,82573.0,0.19477254]
[1743273603250,0.1975695,82574.0,82573.0,0.07362164]
[1743273603452,0.1975695,82574.0,82573.0,0.07298164]
[1743273603656,0.1975695,82574.0,82573.0,0.07362164]
[1743273605547,0.1975695,82574.0,82573.0,0.19477254]
[1743273605755,0.1975695,82574.0,82573.0,0.07362164]
[1743273606152,0.1975695,82574.0,82573.0,0.19477254]
[1743273606352,0.1236695,82574.0,82573.0,0.23027254]
[1743273607157,0.00252,82574.0,82573.0,0.24223104]
[1743273607356,0.001,82574.0,82573.0,0.24223104]
[1743273607861,0.0605586,82596.0,82593.0,0.1211216]
[1743273608057,0.14625255,82594.0,82593.0,0.1211216]
[1743273608377,0.26737265,82594.0,82593.0,0.1217616]
[1743273609052,0.26737265,82594.0,82593.0,0.07344]
[1743273609446,0.26737265,82594.0,82593.0,0.21013227]
[1743273609958,0.1226001,82594.0,82593.0,0.21013227]
[1743273611358,0.00148,82594.0,82593.0,0.21013227]
[1743273611759,0.1211127,82600.0,82599.0,0.1211113]
[1743273612058,0.1225927,82600.0,82599.0,0.1225913]
[1743273612453,0.1225927,82600.0,82599.0,0.13816197]
[1743273612859,0.00148,82600.0,82599.0,0.13816197]
[1743273614161,0.0605506,82607.0,82600.0,0.0605555]
[1743273614348,0.1211042,82605.0,82604.0,0.1211025]
[1743273614554,0.1226242,82605.0,82604.0,0.1217425]
[1743273614754,0.1226242,82605.0,82604.0,0.13731317]
[1743273616151,0.1226242,82605.0,82604.0,0.01621067]
[1743273616367,0.2350242,82605.0,82604.0,0.13667617]
[1743273616656,0.2350242,82605.0,82604.0,0.1218255]
[1743273617469,0.1211231,82592.0,82538.0,0.606011]
[1743273617762,0.12284311,82592.0,82585.0,0.13388]
[1743273618466,0.15904311,82592.0,82585.0,0.13388]
[1743273619053,0.03792001,82592.0,82591.0,0.12130614]
[1743273619263,0.1211179,82596.0,82595.0,0.0605587]
[1743273619476,0.12283791,82596.0,82595.0,0.0605587]
[1743273619655,0.12283721,82596.0,82595.0,0.0605587]
[1743273620263,0.12283721,82596.0,82595.0,0.0757196]
[1743273620959,0.15983721,82596.0,82595.0,0.0757196]
[1743273623400,0.15983721,82596.0,82595.0,0.0151609]
[1743273623868,0.15983721,82596.0,82591.0,0.00018164]
[1743273623869,0.1211231,82592.0,82591.0,0.00018164]
[1743273624068,0.12284311,82592.0,82591.0,0.00018164]
[1743273624654,0.15874311,82592.0,82591.0,0.00018164]
[1743273627458,0.15874311,82592.0,82591.0,0.01533741]
[1743273631273,0.51954311,82592.0,82591.0,0.01533741]
[1743273632866,0.15874311,82592.0,82591.0,0.01533741]
[1743273633572,0.15874311,82592.0,82591.0,0.13646191]
[1743273633573,0.15924311,82592.0,82591.0,0.13646191]
[1743273633775,0.00172001,82592.0,82591.0,0.13646191]
[1743273634078,0.1575128,82599.0,82598.0,0.1211143]
[1743273634377,0.15923281,82599.0,82598.0,0.13627007]
[1743273634575,0.15923281,82599.0,82598.0,0.01515577]
[1743273634764,0.19773281,82599.0,82598.0,0.01515577]
[1743273634966,0.19773281,82599.0,82598.0,0.13627007]
[1743273635868,0.19773281,82599.0,82598.0,0.01515577]
[1743273636572,0.19773281,82599.0,82591.0,0.00018164]
[1743273636573,0.1211231,82592.0,82591.0,0.00018164]
[1743273636768,0.48364311,82592.0,82591.0,0.00018164]
[1743273637373,0.56164311,82592.0,82591.0,0.00018164]
[1743273637572,0.56164311,82592.0,82591.0,0.21574733]
[1743273638982,0.20084311,82592.0,82591.0,0.21574733]
[1743273640482,0.56164311,82592.0,82591.0,0.21574733]
[1743273642179,0.20084311,82592.0,82591.0,0.21574733]
[1743273642382,0.56164311,82592.0,82591.0,0.00018164]
[1743273643278,0.56164311,82592.0,82580.0,0.21556569]
[1743273643279,0.1211392,82581.0,82580.0,0.21556569]
[1743273643471,0.12285921,82581.0,82580.0,0.21556569]
[1743273644391,0.19995921,82581.0,82580.0,0.21556569]
[1743273645078,0.19995921,82581.0,82580.0,0.21756569]
[1743273645680,0.19995921,82581.0,82580.0,0.29466569]
[1743273646086,0.19995921,82581.0,82580.0,0.0771]
[1743273646482,0.19995921,82581.0,82580.0,0.0751]
[1743273646683,0.21220008,82581.0,82580.0,0.0751]
[1743273647182,0.13510008,82581.0,82580.0,0.0751]
[1743273648586,0.17490008,82581.0,82580.0,0.0751]
[1743273650091,0.17490008,82581.0,82572.0,0.21574733]
[1743273650092,0.1211509,82573.0,82572.0,0.21574733]
[1743273650393,0.12287091,82573.0,82572.0,0.00018164]
[1743273651482,0.12287091,82573.0,82572.0,0.07388164]
[1743273651884,0.19647091,82573.0,82572.0,0.07388164]
[1743273653185,0.19647091,82573.0,82572.0,0.03808164]
[1743273653889,0.19647091,82573.0,82572.0,0.07388164]
[1743273657499,0.12287091,82573.0,82572.0,0.19503404]
[1743273660681,0.12287091,82573.0,82572.0,0.07388164]
[1743273663087,0.12287091,82573.0,82572.0,0.00018164]
[1743273663291,0.15947091,82573.0,82572.0,0.00018164]
[1743273665996,0.52027091,82573.0,82572.0,0.00018164]
[1743273667291,0.5202257,82573.0,82557.0,0.21556569]
[1743273667483,0.1211729,82558.0,82557.0,0.21556569]
[1743273667688,0.12289291,82558.0,82557.0,0.21556569]
[1743273668301,0.12289291,82558.0,82557.0,0.28986569]
[1743273668499,0.19729291,82558.0,82557.0,0.29386569]
[1743273669184,0.19729291,82558.0,82557.0,0.29286569]
[1743273669386,0.19729291,82558.0,82557.0,0.29686569]
[1743273671493,0.19729291,82558.0,82557.0,0.0813]
[1743273672198,0.20960821,82558.0,82557.0,0.0813]
[1743273672994,0.57040821,82558.0,82557.0,0.0813]
[1743273676000,0.20960821,82558.0,82557.0,0.0813]
[1743273676199,0.57040821,82558.0,82557.0,0.0813]
[1743273676802,0.57040821,82558.0,82557.0,0.007]
[1743273679795,0.1211759,82556.0,82549.0,0.00018164]
[1743273680105,0.1211847,82550.0,82549.0,0.00018164]
[1743273680300,0.48370471,82550.0,82549.0,0.00018164]
[1743273680801,0.59990471,82550.0,82549.0,0.00018164]
[1743273681206,0.59590471,82550.0,82549.0,0.00018164]
[1743273681987,0.59590471,82550.0,82549.0,0.00218164]
[1743273682191,0.71704414,82550.0,82549.0,0.00218164]
[1743273682904,0.71704414,82550.0,82549.0,0.00318164]
[1743273685901,0.71704414,82550.0,82549.0,0.00218164]
[1743273686096,0.1211994,82540.0,82539.0,0.00048462]
[1743273686296,0.1229594,82540.0,82539.0,0.00048462]
[1743273686799,0.2320594,82540.0,82539.0,0.00048462]
[1743273687399,0.1588594,82540.0,82539.0,0.00048462]
[1743273687603,0.17118477,82540.0,82539.0,0.00048462]
[1743273688000,0.17118477,82540.0,82539.0,0.03768462]
[1743273688208,0.13528477,82540.0,82539.0,0.03768462]
[1743273688407,0.13528477,82540.0,82539.0,0.15888542]
[1743273689206,0.13528477,82540.0,82539.0,0.19698542]
[1743273690801,0.1229594,82540.0,82539.0,0.19698542]
[1743273691311,0.1229594,82540.0,82539.0,0.07578462]
[1743273692001,0.1229594,82540.0,82539.0,0.19698542]
[1743273692208,0.1229594,82540.0,82539.0,0.23468542]
[1743273693908,0.00176,82540.0,82539.0,0.23468542]
[1743273694105,0.1211909,82546.0,82545.0,0.121192]
[1743273694404,0.12291091,82546.0,82545.0,0.481992]
[1743273694599,0.1229909,82546.0,82545.0,0.481992]
[1743273695215,0.1229909,82546.0,82545.0,0.159392]
[1743273695412,0.4837909,82546.0,82545.0,0.0746]
[1743273695812,0.1229909,82546.0,82545.0,0.0746]
[1743273695998,0.1985909,82546.0,82545.0,0.0746]
[1743273696609,0.1995909,82546.0,82545.0,0.0746]
[1743273702005,0.1995909,82546.0,82545.0,0.0382]
[1743273702207,0.1211994,82540.0,82539.0,0.00048462]
[1743273702407,0.12291941,82540.0,82539.0,0.00048462]
[1743273702818,0.15931941,82540.0,82539.0,0.00048462]
[1743273703510,0.19831941,82540.0,82539.0,0.00048462]
[1743273708519,0.31947352,82540.0,82539.0,0.00048462]
[1743273708707,0.45303352,82540.0,82539.0,0.00048462]
[1743273718223,0.19831941,82540.0,82539.0,0.00048462]
[1743273721337,0.12291941,82540.0,82539.0,0.00048462]
[1743273721628,0.12291941,82540.0,82539.0,0.12168542]
[1743273721818,0.1106556,82540.0,82539.0,0.12168542]
[1743273722531,0.1106556,82540.0,82539.0,0.19608542]
[1743273724630,0.1106556,82540.0,82539.0,0.20850863]
[1743273726229,0.00172001,82540.0,82539.0,0.20850863]
[1743273726433,0.1211909,82546.0,82545.0,0.121192]
[1743273726732,0.0018,82546.0,82545.0,0.481992]
[1743273726930,0.10893559,82558.0,82557.0,0.1211744]
[1743273727228,0.1101756,82558.0,82557.0,0.1218144]
[1743273728122,0.1101756,82558.0,82557.0,0.1952144]
[1743273728820,0.12241903,82558.0,82557.0,0.1952144]
[1743273729022,0.1101756,82558.0,82557.0,0.1952144]
[1743273729435,0.1131756,82558.0,82557.0,0.1952144]
[1743273730030,0.1181756,82558.0,82557.0,0.1952144]
[1743273730432,0.00924001,82558.0,82557.0,0.1952144]
[1743273730633,0.008,82558.0,82557.0,0.1952144]
[1743273731137,0.00018164,82566.0,82565.0,0.1211627]
[1743273731335,0.00138165,82566.0,82565.0,0.4826427]
[1743273731522,0.10893559,82570.0,82569.0,0.1211568]
[1743273731723,0.11009559,82570.0,82569.0,0.1223168]
[1743273732324,0.11009559,82570.0,82569.0,0.1994168]
[1743273732635,0.14477255,82575.0,82574.0,0.1211495]
[1743273732938,0.1211237,82592.0,82579.0,0.1211421]
[1743273733130,0.121119,82595.0,82585.0,0.1211333]
[1743273733329,0.21883431,82586.0,82585.0,0.1220933]
[1743273734039,0.00088001,82586.0,82585.0,0.1220933]
[1743273734340,0.14483629,82593.0,82592.0,0.1211231]
[1743273734529,0.1457163,82593.0,82592.0,0.1220031]
[1743273735032,0.2668379,82593.0,82592.0,0.1220031]
[1743273735625,0.1457163,82593.0,82592.0,0.1220031]
[1743273735821,0.2668379,82593.0,82592.0,0.1220031]
[1743273736132,0.1457163,82593.0,82592.0,0.1220031]
[1743273736327,0.2668379,82593.0,82592.0,0.1957031]
[1743273736533,0.2678379,82593.0,82592.0,0.1957031]
[1743273736931,0.12300161,82593.0,82592.0,0.1957031]
[1743273737128,0.12300161,82593.0,82592.0,0.2326031]
[1743273740235,0.12300161,82593.0,82592.0,0.2336031]
[1743273740742,0.12200161,82593.0,82592.0,0.1977031]
[1743273741038,0.12200161,82593.0,82592.0,0.1240031]
[1743273741448,0.20120161,82593.0,82592.0,0.1240031]
[1743273742328,0.20120161,82593.0,82592.0,0.1230031]
[1743273742535,0.20120161,82593.0,82592.0,0.1240031]
[1743273742939,0.20120161,82593.0,82592.0,0.1628031]
[1743273743135,0.20120161,82593.0,82592.0,0.2016031]
[1743273743840,0.20120161,82593.0,82592.0,0.1240031]
[1743273744451,0.20120161,82593.0,82592.0,0.00288]
[1743273745543,0.20120161,82593.0,82592.0,0.00188]
[1743273745748,0.20120161,82593.0,82592.0,0.00288]
[1743273745938,0.1211436,82578.0,82568.0,0.3608]
[1743273746144,0.1211436,82578.0,82577.0,0.12208674]
[1743273746643,0.1217836,82578.0,82577.0,0.16068674]
[1743273747047,0.2009836,82578.0,82577.0,0.16068674]
[1743273747445,0.2009836,82578.0,82577.0,0.16168674]
[1743273747648,0.2009836,82578.0,82577.0,0.52248674]
[1743273748138,0.2009836,82578.0,82577.0,0.40134164]
[1743273748340,0.2009836,82578.0,82577.0,0.48388674]
[1743273748945,0.2009836,82578.0,82577.0,0.48588674]
[1743273749339,0.21321475,82578.0,82577.0,0.48588674]
[1743273749537,0.21321475,82578.0,82577.0,0.48488674]
[1743273749750,0.21321475,82578.0,82577.0,0.48288674]
[1743273750148,0.21321475,82578.0,82577.0,0.36174164]
[1743273750642,0.21321475,82578.0,82577.0,0.48388674]
[1743273750847,0.2009836,82578.0,82577.0,0.48388674]
[1743273751253,0.2009836,82578.0,82577.0,0.52268674]
[1743273751949,0.2009836,82578.0,82577.0,0.52368674]
[1743273752149,0.2009836,82578.0,82577.0,0.36374164]
[1743273752343,0.2009836,82578.0,82577.0,0.36274164]
[1743273752542,0.2009836,82578.0,82577.0,0.36374164]
[1743273753246,0.2009836,82578.0,82577.0,0.48488674]
[1743273753442,0.2009836,82578.0,82577.0,0.48388674]
[1743273753642,0.2009836,82578.0,82577.0,0.48288674]
[1743273754645,0.07984,82578.0,82577.0,0.48288674]
[1743273755156,0.0981688,82583.0,82581.0,0.1211377]
[1743273755351,0.2193051,82583.0,82582.0,0.0365]
[1743273755544,0.2202251,82583.0,82582.0,0.07562]
[1743273755740,0.2202251,82583.0,82582.0,0.21184942]
[1743273755948,0.0614888,82583.0,82582.0,0.21184942]
[1743273756149,0.0605688,82583.0,82582.0,0.21184942]
[1743273756450,0.1211338,82585.0,82584.0,0.1816986]
[1743273756753,0.1219338,82585.0,82584.0,0.6196986]
[1743273757154,0.1219338,82585.0,82584.0,0.63479032]
[1743273758750,0.1219338,82585.0,82584.0,0.63579032]
[1743273758952,0.0605601,82594.0,82588.0,0.060564]
[1743273759148,0.18272481,82594.0,82593.0,0.1211201]
[1743273759551,0.18272481,82594.0,82593.0,0.13725182]
[1743273759956,0.25942481,82594.0,82593.0,0.13725182]
[1743273760156,0.25942481,82594.0,82593.0,0.14954136]
[1743273760454,0.25942481,82594.0,82593.0,0.15258688]
[1743273760944,0.26142481,82594.0,82593.0,0.15258688]
[1743273761253,0.06360011,82594.0,82593.0,0.19148688]
[1743273761449,0.0625601,82594.0,82593.0,0.19148688]
[1743273761642,0.06368011,82594.0,82593.0,0.19148688]
[1743273762648,0.06368011,82594.0,82593.0,0.17615182]
[1743273763057,0.06468011,82594.0,82593.0,0.53785512]
[1743273763250,0.06468011,82594.0,82593.0,0.5227634]
[1743273763251,0.0635601,82594.0,82593.0,0.5227634]
[1743273766655,0.0635601,82594.0,82593.0,0.1610601]
[1743273766843,0.0643201,82594.0,82593.0,0.1610601]
[1743273770152,0.0643201,82594.0,82593.0,0.1610616]
[1743273770957,0.0643201,82594.0,82593.0,0.03994]
[1743273771353,0.0643201,82594.0,82593.0,0.00104]
[1743273771659,0.4251201,82594.0,82593.0,0.00104]
[1743273773471,0.0643201,82594.0,82593.0,0.00104]
[1743273774462,0.0643201,82594.0,82593.0,0.1221616]
[1743273774856,0.0643201,82594.0,82593.0,0.33856749]
[1743273775267,0.0643201,82594.0,82593.0,0.21744589]
[1743273778565,0.0643201,82594.0,82593.0,0.00104]
[1743273779765,0.0643201,82594.0,82593.0,0.03974]
[1743273779960,0.0643201,82594.0,82593.0,0.1608616]
[1743273780156,0.0643201,82594.0,82593.0,0.2008616]
[1743273780760,0.00376,82594.0,82593.0,0.2008616]
[1743273781054,0.1241201,82594.0,82593.0,0.2008616]
[1743273781566,0.1252001,82594.0,82593.0,0.2008616]
[1743273782251,0.1252001,82594.0,82593.0,0.21274788]
[1743273782854,0.1252001,82594.0,82593.0,0.2008616]
[1743273783070,0.1252001,82594.0,82593.0,0.2038616]
[1743273783071,0.1242001,82594.0,82593.0,0.2038616]
[1743273783255,0.1242001,82594.0,82593.0,0.00404]
[1743273783666,0.1242001,82594.0,82593.0,0.1251616]
[1743273783854,0.1231201,82594.0,82593.0,0.1251616]
[1743273784256,0.12216011,82594.0,82593.0,0.1251616]
[1743273784465,0.12216011,82594.0,82593.0,0.1281616]
[1743273784669,0.1211201,82594.0,82593.0,0.1281616]
[1743273785168,0.198618,82596.0,82593.0,0.1261616]
[1743273785366,0.1211201,82594.0,82593.0,0.2462812]
[1743273785966,0.1211201,82594.0,82593.0,0.2845812]
[1743273786665,0.1211201,82594.0,82593.0,0.5731658]
[1743273787370,0.12224011,82594.0,82593.0,0.5731658]
[1743273787668,0.12224011,82594.0,82593.0,0.5721658]
[1743273788071,0.12224011,82594.0,82593.0,0.4510442]
[1743273788962,0.12224011,82594.0,82593.0,0.4500442]
[1743273789163,0.12224011,82594.0,82593.0,0.4520442]
[1743273789565,0.12224011,82594.0,82593.0,0.4510442]
[1743273789761,0.12224011,82594.0,82593.0,0.4520442]
[1743273789960,0.12224011,82594.0,82593.0,0.4127442]
[1743273790270,0.12224011,82594.0,82593.0,0.1241596]
[1743273790666,0.12224011,82594.0,82593.0,0.1624596]
[1743273791265,0.12224011,82594.0,82593.0,0.1614596]